Cogmind - Beta 12 @@@ ROGUE MODE // 2024.02.17 @ 20:05:15 Player: Haldron Result: Destroyed by Y-54 Guardian with Gatling Laser Performance ------------- Evolutions (1) 500 Regions Visited (6) 1200 Robots Destroyed (29) 145 Value Destroyed (704) 704 Prototype IDs (4) 80 Alien Tech Used (0) 0 Bonus (251) 251 TOTAL SCORE: 2880 Bonus ------- Follower Combat Kills 37 Met Imprinter 300 Friendly Fire -86 Cogmind --------- Core Integrity 0/400 Matter 136/300 Energy 86/100 System Corruption 0% Temperature Cool (12) Movement Core (950) Ox18 Location -6/Proximity Caves Parts ------- > --- POWER (1) -------- (None) > --- PROPULSION (3) --- (None) > --- UTILITY (3) ------ High-capacity Storage Unit Sensor Array Makeshift Armor Plating > --- WEAPON (2) ------- Heavy Rocket Launcher Maul > --- INVENTORY (20) --- Ion Engine Wheel Large Storage Unit Large Matter Pod (150) Structural Scanner Advanced Visual Processing Unit Improved Signal Interpreter Layered Light Armor Plating Mobile Refinery Mk. CCLXVII Trap Extractor (0/4) Trap Extractor (0/4) Trap Extractor (1/4 Dirty Bomb) Hacking Drone Bay Field Laser Assault Rifle Shotgun Rocket Array Peak State ------------ > --- POWER ------------ Ion Engine > --- PROPULSION ------- Wheel Wheel Wheel > --- UTILITY ---------- High-capacity Storage Unit Structural Scanner Mobile Refinery Mk. CCLXVII > --- WEAPON ----------- Precision Grenade Launcher Maul > --- INVENTORY -------- Ion Engine Light Treads Aluminum Leg Aluminum Leg Aluminum Leg Large Storage Unit Large Matter Pod Advanced Visual Processing Unit Seismic Detector Trap Extractor Trap Extractor Trap Extractor Trap Extractor Hacking Drone Bay Beam Rifle Assault Rifle Assault Rifle Shotgun Heavy Rocket Launcher Rocket Array [Rating: 23] Favorites ----------- Power Ion Engine Engine Ion Engine Propulsion Wheel Treads Light Treads Leg Aluminum Leg Wheel Wheel Utility High-capacity Storage Unit Device Sensor Array Storage High-capacity Storage Unit Protection Makeshift Armor Plating Weapon Maul Energy Gun Beam Rifle Ballistic Gun Shotgun Launcher Precision Grenade Launcher Impact Weapon Maul Build | -11 -10 -10 -9 -9 -7 -6 ------- Run | Jun Mat Min Mat Min Zio Pro Slots Evolved 2 | . . . 2 . . . Power . | . . . . . . . Propulsion 1 | . . . 1 . . . Utility 1 | . . . 1 . . . Weapon . | . . . . . . . Parts Attached 55 | 8 6 6 14 5 8 8 Power 4 | 1 1 1 1 . . . Engine 4 | 1 1 1 1 . . . Core . | . . . . . . . Reactor . | . . . . . . . Propulsion 12 | 2 . . 6 2 1 1 Treads 3 | 1 . . 1 . . 1 Leg 2 | . . . 1 1 . . Wheel 7 | 1 . . 4 1 1 . Hover . | . . . . . . . Flight . | . . . . . . . Utility 14 | 3 4 1 1 . 2 3 Device 9 | 2 1 1 1 . 2 2 Storage 4 | 1 3 . . . . . Processor . | . . . . . . . Hackware . | . . . . . . . Protection 1 | . . . . . . 1 Artifact . | . . . . . . . Weapon 25 | 2 1 4 6 3 5 4 Energy Gun 4 | . 1 2 1 . . . Energy Cannon . | . . . . . . . Ballistic Gun 12 | 2 . 2 3 2 2 1 Ballistic Cannon . | . . . . . . . Launcher 5 | . . . . . 3 2 Special Weapon . | . . . . . . . Impact Weapon 4 | . . . 2 1 . 1 Slashing Weapon . | . . . . . . . Piercing Weapon . | . . . . . . . Special Melee Weapon . | . . . . . . . Unidentified Prototypes 4 | . 1 . . . 3 . Parts Lost 16 | . . . 9 . . 7 Power 2 | . . . 1 . . 1 Propulsion 8 | . . . 5 . . 3 Utility 1 | . . . . . . 1 Weapon 5 | . . . 3 . . 2 Highest Loss Streak 5 | . . . 3 . . 5 To Critical Strikes . | . . . . . . . Average Slot Usage (%) 98 | . 99 100 94 100 100 89 Engine 11 | . 14 14 11 11 11 9 Treads 7 | . 14 14 15 11 1 1 Wheel 22 | . 14 14 12 11 31 24 Device 19 | . 14 14 21 22 22 20 Storage 11 | . 14 14 11 11 11 11 Energy Gun 2 | . 3 8 4 . . . Ballistic Gun 10 | . 24 19 10 19 4 . Launcher 3 | . . . . . 6 10 Impact Weapon 6 | . . . 4 2 10 10 Naked Turns . | . . . . . . . Heaviest Build 60 | 12 51 54 55 52 60 57 Greatest Support 40 | 10 10 10 40 20 30 30 Greatest Overweight (x) 17 | 1 5 5 5 5 2 17 Average Overweight (x) 2 | . 3 5 2 4 1 1 Largest Inventory Capacity 20 | 8 20 20 20 20 20 20 Average Capacity 19 | 7 17 20 20 20 20 20 Most Carried 20 | 8 19 20 20 18 20 20 Average Carried 18 | 5 11 19 18 16 19 19 Final Capacity 20 | 8 20 20 20 20 20 20 Final Carried 20 | 8 19 20 17 18 20 17 Class Distribution -------------------- 100% | Mutant Dominant Class ---------------- Mutant | -10/Materials Mutant | -10/Mines Mutant | -9/Materials Mutant | -9/Mines Mutant | -7/Zion Mutant | -6/Proximity Caves Resources | -11 -10 -10 -9 -9 -7 -6 ----------- Run | Jun Mat Min Mat Min Zio Pro Matter Collected 1005 | 271 . 250 278 81 80 45 Remotely . | . . . . . . . Salvage Created 843 | 116 . . 455 92 . 180 Parts 48 | 8 . . 27 3 . 10 Haulers Intercepted . | . . . . . . . Recyclers Shooed 3 | . 2 1 . . . . Parts Field Recycled . | . . . . . . . Retrieved Matter . | . . . . . . . Parts Self-Destructed 7 | . . . . . . 7 Prevented 2 | . . . . . . 2 Kills | -11 -10 -10 -9 -9 -7 -6 ------- Run | Jun Mat Min Mat Min Zio Pro Combat Hostiles Destroyed 18 | . . . 10 . . 8 Guns 6 | . . . 6 . . . AOE 12 | . . . 4 . . 8 Classes Destroyed 7 | 2 . . 4 . . 1 Worker 3 | . . . 1 2 . . Builder 1 | . . . 1 . . . Tunneler 2 | 2 . . . . . . Recycler 4 | 1 . . 2 1 . . Minesweeper 1 | . . . . . . 1 Swarmer 7 | . . . 3 . . 4 Grunt 11 | . . . 7 . . 4 Best Kill Streak 8 | 2 . . 7 3 . 8 Combat Bots Only 8 | . . . 5 . . 8 Max Kills in Single Turn 6 | 1 . . 6 1 . 4 Gunslinging 1 | . . . 1 . . . Exploded 4 | . . . 4 . . 4 Melee . | . . . . . . . Uniques/NPCs Destroyed . | . . . . . . . Combat | -11 -10 -10 -9 -9 -7 -6 -------- Run | Jun Mat Min Mat Min Zio Pro Damage Taken 2259 | . . 17 1100 . . 1142 Core 405 | . . . 184 . . 221 Absorbed by Shields . | . . . . . . . Regen/Repaired (Parts) 225 | . . . . . 225 . Core Remaining (%) 100 | 100 . 100 . . . . Volleys Fired 51 | 9 5 4 21 . . 12 Largest 2 | 2 2 2 2 . . 1 Hottest 112 | 40 45 112 112 . . 45 Shots Fired 87 | 18 8 7 42 . . 12 Gun 78 | 18 8 7 42 . . 3 Cannon . | . . . . . . . Launcher 9 | . . . . . . 9 Special . | . . . . . . . Kinetic 64 | 18 7 2 34 . . 3 Thermal 13 | . . 5 8 . . . Explosive 9 | . . . . . . 9 Electromagnetic 1 | . 1 . . . . . Robot Hit Streak 14 | 6 3 2 14 . . 7 Robot Miss Streak 4 | 2 2 4 4 . . 2 Penetration Max . | . . . . . . . Secondary Targets 2 | . . . 2 . . . Max Gunslinging Chain 1 | . . . 1 . . . Shots Hit Robots 59 | 11 4 2 29 3 . 10 Core Hits 62 | 5 1 1 24 2 . 29 Critical Kills . | . . . . . . . Critical Parts Destroyed 2 | . 1 . . . . 1 Critical Strikes 4 | . 1 1 1 . . 1 Burn 2 | . . 1 1 . . . Destroy 1 | . 1 . . . . . Smash 1 | . . . . . . 1 Melee Attacks 17 | . . . 8 3 5 1 Impact 17 | . . . 8 3 5 1 Slashing . | . . . . . . . Piercing . | . . . . . . . Sneak Attacks 5 | . . . 1 3 . 1 Combat Hostiles . | . . . . . . . Follow-up Attacks . | . . . . . . . Damage Inflicted 2659 | 121 53 56 1012 223 . 1194 Guns 769 | 121 53 56 497 . . 42 Cannons . | . . . . . . . Explosions 1510 | . . . 441 . . 1069 Melee 380 | . . . 74 223 . 83 Ramming . | . . . . . . . Kinetic 628 | 121 29 26 410 . . 42 Thermal 117 | . . 30 87 . . . Explosive 1510 | . . . 441 . . 1069 Electromagnetic 24 | . 24 . . . . . Impact 380 | . . . 74 223 . 83 Slashing . | . . . . . . . Piercing . | . . . . . . . Highest Corruption . | . . . . . . . Average Corruption . | . . . . . . . Corruption Purged . | . . . . . . . Corruption Blocked . | . . . . . . . Overload Shots . | . . . . . . . Overflow Damage 225 | . . . 58 79 . 88 Projectiles . | . . . . . . . Explosions 63 | . . . 58 . . 5 Melee 162 | . . . . 79 . 83 Knockbacks 2 | . . . . 2 . . Impact 1 | . . . . 1 . . Kinetic . | . . . . . . . Secondary 1 | . . . . 1 . . Self-Inflicted Damage 139 | . . . 68 . . 71 Shots 3 | . . . 1 . . 2 Rammed . | . . . . . . . Targets Rammed . | . . . . . . . Kicked . | . . . . . . . Crushed . | . . . . . . . Highest Temperature 214 | . 4 108 214 . . 20 Average Temperature 56 | . 3 50 72 . . 8 Received Heat Transfer 819 | . . 9 444 . . 366 Effects 3 | . . . 3 . . . Interference 3 | . . . 3 . . . Siege Activations . | . . . . . . . Robots Corrupted . | . . . . . . . Combat Hostiles . | . . . . . . . Parts Fried 1 | . . . . 1 . . Impact Corruptions 6 | . . . . 3 . 3 Robots Melted . | . . . . . . . Combat Hostiles . | . . . . . . . Parts Melted . | . . . . . . . Heat Transferred 444 | . . 148 296 . . . Parts Sabotaged . | . . . . . . . Parts Stolen . | . . . . . . . Parts Stripped . | . . . . . . . Power Chain Reactions . | . . . . . . . Missiles Intercepted . | . . . . . . . Alert | -11 -10 -10 -9 -9 -7 -6 ------- Run | Jun Mat Min Mat Min Zio Pro Peak Influence 341 | 15 24 9 341 67 . . Initial 52 | . 9 9 . 52 . . Average 50 | 5 16 5 124 54 . . Maximum Alert Level 1 | . . . 1 . . . Low Security (%) 98 | 100 100 100 93 100 . . Level 1 1 | . . . 6 . . . Level 2 . | . . . . . . . Level 3 . | . . . . . . . Level 4 . | . . . . . . . Level 5 . | . . . . . . . High Security . | . . . . . . . Max Security . | . . . . . . . Squads Dispatched 5 | . 1 . 4 . . . Investigation 3 | . . . 3 . . . Extermination . | . . . . . . . Reinforcement 2 | . 1 . 1 . . . Assault . | . . . . . . . Garrison . | . . . . . . . Intercept . | . . . . . . . Searches Triggered . | . . . . . . . Construction Impeded 1 | . . . 1 . . . Haulers Reinforced . | . . . . . . . Active Scanning Responses . | . . . . . . . Cargo Convoy Interrupts . | . . . . . . . Stealth | -11 -10 -10 -9 -9 -7 -6 --------- Run | Jun Mat Min Mat Min Zio Pro Distress Signals 1 | . . . . . . 1 Communications Jammed . | . . . . . . . Distress Signals . | . . . . . . . Times Spotted 38 | . 1 3 23 . . 11 Peak Tracking Total 8 | . 1 2 7 . . 8 Tactical Retreats 4 | . . . 4 . . . Traps | -11 -10 -10 -9 -9 -7 -6 ------- Run | Jun Mat Min Mat Min Zio Pro Traps Triggered 2 | . . . 2 . . . Indirectly . | . . . . . . . Trap Hack Attempts . | . . . . . . . Triggered . | . . . . . . . Disarmed . | . . . . . . . Reprogrammed . | . . . . . . . Reused . | . . . . . . . Traps Extracted 1 | . . . . . . 1 Installed . | . . . . . . . Triggered . | . . . . . . . Most Traps Carried 3 | . . . . . . 3 Machines | -11 -10 -10 -9 -9 -7 -6 ---------- Run | Jun Mat Min Mat Min Zio Pro Machines Disabled 4 | . . . 4 . . . Max in Single Turn 3 | . . . 3 . . . Machines Repaired . | . . . . . . . Machines Sabotaged . | . . . . . . . Overloaded Fab Kills . | . . . . . . . Hacking | -11 -10 -10 -9 -9 -7 -6 --------- Run | Jun Mat Min Mat Min Zio Pro Machines Accessed 5 | . . . 5 . . . Terminals 5 | . . . 5 . . . Fabricators . | . . . . . . . Repair Stations . | . . . . . . . Recycling Units . | . . . . . . . Scanalyzers . | . . . . . . . Garrison Access . | . . . . . . . Total Hacks 14 | . . . 14 . . . Successful 5 | . . . 5 . . . Failed 9 | . . . 9 . . . Catastrophic 2 | . . . 2 . . . Database Lockouts . | . . . . . . . Manual 12 | . . . 12 . . . Terminals 14 | . . . 14 . . . Fabricators . | . . . . . . . Repair Stations . | . . . . . . . Recycling Units . | . . . . . . . Scanalyzers . | . . . . . . . Garrison Access . | . . . . . . . Terminal Hacks 2 | . . . 2 . . . Terminal Index 1 | . . . 1 . . . Scanalyzer Index 1 | . . . 1 . . . Fabricator Hacks . | . . . . . . . Repair Station Hacks . | . . . . . . . Recycling Unit Hacks . | . . . . . . . Scanalyzer . | . . . . . . . Garrison Access Hacks . | . . . . . . . Unauthorized Hacks 3 | . . . 3 . . . Terminals 3 | . . . 3 . . . Botnet 3 | . . . 3 . . . Fabricators . | . . . . . . . Repair Stations . | . . . . . . . Recycling Units . | . . . . . . . Scanalyzers . | . . . . . . . Garrison Access . | . . . . . . . Data Cores Recovered . | . . . . . . . Used . | . . . . . . . Hacking Detections 5 | . . . 5 . . . Full Trace Events 2 | . . . 2 . . . Feedback Events . | . . . . . . . Feedback Blocked . | . . . . . . . Robot Schematics Acquired 4 | . . . . . 4 . Robots Built . | . . . . . . . Authchips . | . . . . . . . Time . | . . . . . . . Total Robot Build Rating . | . . . . . . . Part Schematics Acquired 14 | . . . . . 14 . Parts Built . | . . . . . . . Authchips . | . . . . . . . Time . | . . . . . . . Total Part Build Rating . | . . . . . . . Parts Repaired . | . . . . . . . Time . | . . . . . . . Parts Recycled . | . . . . . . . Recycled Matter . | . . . . . . . Retrieved Matter . | . . . . . . . Retrieved Components . | . . . . . . . Parts Scanalyzed . | . . . . . . . Part Schematics Acquired . | . . . . . . . Parts Damaged . | . . . . . . . Bothacking | -11 -10 -10 -9 -9 -7 -6 ------------ Run | Jun Mat Min Mat Min Zio Pro Used RIF Installer . | . . . . . . . Robots Hacked . | . . . . . . . Non-combat . | . . . . . . . Combat . | . . . . . . . Robot Hacks Applied . | . . . . . . . Relay Couplers Released . | . . . . . . . Fabnet Peak Effective % . | . . . . . . . Robots Rewired . | . . . . . . . Allies Hacked . | . . . . . . . Hacks Repelled . | . . . . . . . Allies | -11 -10 -10 -9 -9 -7 -6 -------- Run | Jun Mat Min Mat Min Zio Pro Total Allies 3 | . . . . . 3 . Largest Group 3 | . . . . . 3 3 Highest-Rated Group 76 | . . . . . 76 76 Highest-Rated Ally 31 | . . . . . 31 31 Total Orders . | . . . . . . . Ally Attacks 3 | . . . . . . 3 Total Damage 104 | . . . . . . 104 Kills 1 | . . . . . . 1 Allies Corrupted . | . . . . . . . Allies Melted . | . . . . . . . Intel | -11 -10 -10 -9 -9 -7 -6 ------- Run | Jun Mat Min Mat Min Zio Pro Robot Analysis Total . | . . . . . . . Derelict Logs Recovered 4 | . . 1 . 1 2 . Drone Launches . | . . . . . . . Drone Recoveries . | . . . . . . . Exploration | -11 -10 -10 -9 -9 -7 -6 ------------- Run | Jun Mat Min Mat Min Zio Pro Turns Passed 3671 | 117 177 683 558 250 1625 261 Spaces Moved 2748 | 75 104 411 295 149 1512 202 Core 8 | 7 . . . . . 1 Treads 11 | . . . 11 . . . Legs . | . . . . . . . Wheels 2729 | 68 104 411 284 149 1512 201 Hover . | . . . . . . . Flight . | . . . . . . . Fastest Speed 50 | 50 95 155 120 110 95 95 Average Speed 116 | 90 128 155 139 154 98 107 Slowest Speed 900 | 95 155 155 240 155 110 900 Overloaded Moves . | . . . . . . . Propulsion Burnouts . | . . . . . . . Robots Hopped . | . . . . . . . Cave-ins Triggered . | . . . . . . . Exploration Rate (%) 35 | 4 20 54 31 22 85 29 Regions Visited 6 Branch Regions 4 Pre-discovered Areas 2 | . . 1 . . 1 . Known Exits Taken 1 | . . . 1 . . . Unknown Exits Taken 5 | 1 1 1 . 1 1 . Scrap Searched 8 | . . 2 . . 4 2 Spaces Dug 6 | . . . 6 . . . Terrain Destroyed 158 | . . . 44 . . 114 Melee 6 | . . . 6 . . . Projectile . | . . . . . . . AOE 152 | . . . 38 . . 114 Terrain Rammed . | . . . . . . . Walls Destroyed . | . . . . . . . Machines Disabled . | . . . . . . . Actions | -11 -10 -10 -9 -9 -7 -6 --------- Run | Jun Mat Min Mat Min Zio Pro Total 3111 | 109 142 450 380 162 1636 232 Wait 155 | 1 3 19 34 3 93 2 Move 2742 | 74 103 410 294 148 1511 202 Hop . | . . . . . . . Pick Up 59 | 15 16 6 6 3 10 3 Fast Attach 7 | 2 1 . 3 . 1 . Attach 20 | 6 1 . 6 2 1 4 Detach 3 | . 2 . . . . 1 Swap 28 | . 4 6 5 3 6 4 Drop 29 | 2 7 5 3 . 9 3 Fire 51 | 9 5 4 21 . . 12 Melee 17 | . . . 8 3 5 1 Ram . | . . . . . . . Kick . | . . . . . . . Crush . | . . . . . . . Escape Stasis . | . . . . . . . Rewire . | . . . . . . . Trap . | . . . . . . . Miscellaneous . | . . . . . . . Route ------- -11/Junkyard -10/Materials -10/Mines (discovered 2 exits: *Mat x2) -9/Materials (discovered 2 exits: *Min x2) -9/Mines -7/Zion (discovered 2 exits: Dee / [*Pro]) -6/Proximity Caves History --------- Turn | Location | Event 18 | -11/Junkyard | Discovered new exit (range 16) 118 | -11/Junkyard | Entered Materials 226 | -10/Materials | Discovered new exit (range 15) 295 | -10/Materials | Entered Mines 318 | -10/Mines | Build established: Mutant 325 | -10/Mines | Learned location of 1 exit from Materials 681 | -10/Mines | Joined a pair of Derelicts in attacking an 0b10 outpost 898 | -10/Mines | Discovered new exit (range 5) 965 | -10/Mines | Discovered new exit (range 10) 970 | -10/Mines | Learned location of Storage (-8) 978 | -10/Mines | Entered Materials 978 | -9/Materials | Evolved 2 slots: Propulsion x1, Utility x1 979 | -9/Materials | Identified exit to Mines 1375 | -9/Materials | Lost 3 parts (1n2w) 1401 | -9/Materials | Discovered exit to Mines (range 7) 1536 | -9/Materials | Entered Mines 1542 | -9/Mines | Met a Derelict bent on vengeance 1543 | -9/Mines | Received a Rocket Launcher from a helpful Derelict 1553 | -9/Mines | Lost 3 parts (2n1w) 1566 | -9/Mines | Learned Materials emergency access door positions 1567 | -9/Mines | A Derelict revealed a hidden shortcut to a safe place 1752 | -9/Mines | Assembled infested the area 1757 | -9/Mines | Assisted by a Guerilla fighting off Assembled 1786 | -9/Mines | Entered Zion 1812 | -7/Zion | Identified exit to Deep Caves 1869 | -7/Zion | Discovered new exit (range 16) 1984 | -7/Zion | Learned location of 1 exit from Factory 2266 | -7/Zion | Learned location of Quarantine (-2) 2277 | -7/Zion | Gained Derelict followers 2325 | -7/Zion | Found Prototype Launcher 2326 | -7/Zion | Identified Rocket Array 2544 | -7/Zion | Given the Hacking Drone Bay 2546 | -7/Zion | Found Prototype Device 2589 | -7/Zion | Visited the Megawrench Repair Shop 2710 | -7/Zion | Megawrench repaired 9 parts 3002 | -7/Zion | Found Prototype Device 3002 | -7/Zion | Identified Mobile Refinery Mk. CCLXVII 3219 | -7/Zion | Found Rocket Array 3411 | -7/Zion | Entered Proximity Caves 3411 | -6/Proximity Caves | Accompanied by 3 allies 3588 | -6/Proximity Caves | Attracted the attention of an 0b10 checkpoint 3596 | -6/Proximity Caves | Core integrity fell below 50% 3652 | -6/Proximity Caves | Core integrity fell below 20% 3672 | -6/Proximity Caves | Destroyed by Y-54 Guardian with Gatling Laser Last Messages --------------- 03603_ G0-PSN(b) destroyed. 03620_ G-50 Soldier destroyed. 03637_ Lgt. Treads destroyed. 03639_ Ion Engine destroyed. 03639_ S-27 Virus destroyed. 03643_ VTOL Module fries itself beyond repair. 03646_ Prc. Grenade Launcher destroyed. 03648_ VTOL Module fries itself beyond repair. 03648_ Trap Extractor destroyed. 03649_ Lgt. Nuclear Core fries itself beyond repair. 03650_ Autogun fries itself beyond repair. 03651_ G-50 Soldier destroyed. 03653_ VTOL Module fries itself beyond repair. 03656_ Autogun fries itself beyond repair. 03657_ The unstable cave ceiling collapses. 03658_ G-67 Veteran destroyed. 03659_ The unstable cave ceiling collapses. 03659_ Rocket Array destroyed. 03665_ The unstable cave ceiling collapses. 03670_ Destroyed Imp. Heat Sink. Map ----- +----------------------------------------------------+ | ?????????????????????????????????????????????????? | | ?????????????????????????????????????????????????? | | ?????????????????????????????????????????????????? | | ?????????????????????????????????????????????????? | | ?????????????????????????????????????????????????? | | ?????????????????????????????????????????????????? | | ?????????????????????????????????????????????????? | | ?????????????????????????????????????????????????? | | ?????????????????????????????????????????????????? | | ???????????????????????????????????????????????? | | ??????????????????????????????????????????????? | | ??????????????????????????????????????????????? | | ?????????? #?????????????????????????????????? | | ??????????? #????????????????????????????????? | | ???????????# ????????????????????????????????? | | #?##???????## ?????????####???????????????????? | | ## ##?????## ????????? ???????????????????? | | ## #?????# ????????? ????????????????????? | | # #?????# ????????? #????????????????????? | | ##????# #???????? ##???????????????????? | | ##???# #???????? ##??????????????????? | | ##### #??????## #??????????????????? | | ##????## ##?????????????????? | | #???## # # #????????????? | | #???????# ## # #????????????? | | ????????# # @ #????????????? | | #???????????? | | % Y % % #???????????? | | # % ?????????? | | ## # # g ?????????? | | ##### ???? ? # ??????????? | | ????##??????? ??# ### ??????????? | | ???????????? ???# ###?? ??????????? | | #?????????????? ## ##????? ???????????? | | ##???????????? #### #??????? ##???????????? | | #???????????? ##??# #???????# ????????????? | | #???????????? ????# ??????? ????????????? | | #??????????? ????## ?????????????????????? | | ????????????? ??????# ?????????????????????? | | ?????????????? ???????###?????????????????????? | | ???????????????## ???????????????????????????????? | | ?????????????????#???????????????????????????????? | | ?????????????????????????????????????????????????? | | ?????????????????????????????????????????????????? | | ?????????????????????????????????????????????????? | | ?????????????????????????????????????????????????? | | ?????????????????????????????????????????????????? | | ?????????????????????????????????????????????????? | | ?????????????????????????????????????????????????? | | ?????????????????????????????????????????????????? | +----------------------------------------------------+ Best States ------------- Heat Dissipation 28 Energy Generation 12 Energy Capacity 265 Matter Stores 300 Matter Capacity 300 Sight Range 16 Robot Scan Range 14 Terrain Scan Range 16 Terrain Scan Density 10 Armor Coverage 100 Evasion (%) 41 Recoil Reduction 2 Trap Extractor Capacity 4 Item Schematics ----------------- Core Analyzer | -7/Zion | Archive Imp. Thermal Generator | -7/Zion | Archive Mak. Salvage Targeting Computer | -7/Zion | Archive Imp. System Restoration Module | -7/Zion | Archive Imp. Weapon Cycler | -7/Zion | Archive Imp. Particle Charger | -7/Zion | Archive Imp. Medium Armor Plating | -7/Zion | Archive Thermic Laser | -7/Zion | Archive Remote Datajack | -7/Zion | Archive Enh. Gauss Cannon | -7/Zion | Archive Lyr. Medium Armor Plating | -7/Zion | Archive Component Analysis Suite | -7/Zion | Archive Corruption Screen | -7/Zion | Archive System Guard | -7/Zion | Archive Robot Schematics ------------------ A-02 Transporter | -7/Zion | Archive L-31 Rogue | -7/Zion | Archive R-06 Scavenger | -7/Zion | Archive X-77 Beamer | -7/Zion | Archive Fabricated ------------ Nothing Alien Tech Used ----------------- None Achievements -------------- None Challenges ------------ None Game ------ Seed GrapheneMinesnifferAnalyzer Manual? 0 Play Time 00:53:42 Cumulative 124.6 hours Start 2023.11.17 @ 19:51:00 End 2024.02.17 @ 20:05:15 Sessions 2 Manual Loads 0 Difficulty Rogue Special Mode None Game No. 32 Rogue 27 Adventurer 4 Explorer 1 Win Type - Total 2 Types 1/0/1/0/0/0/0/0/0 Lore% 35 Gallery% 51 Achievement% 35 Wizard Run 0 Options --------- ASCII 0 Keyboard 0 Movement Numpad Keybinds 0 Fullscreen 1 Font 18/SmallcapsGlow Map View 76x50 Tactical HUD 1 Map Filters NONE Filters NONE Steam X RUN: bcbf01ac-db61-4a94-b86c-2c32bd450d40